bitfinex/quotes_ETHUSD_20260314
["timestamp","ask_amount","ask_price","bid_price","bid_amount"]
[1773475359833,0.001,2078.6,2078.2,0.53729654]
[1773475360034,0.001,2078.6,2078.3,1.20290622]
[1773475360235,0.001,2078.6,2078.4,0.48917798]
[1773475364150,0.45759369,2078.6,2078.3,1.20390622]
[1773475365046,0.45759369,2078.6,2078.3,1.6930842]
[1773475375657,0.45759369,2078.6,2078.5,0.001]
[1773475375859,0.001,2078.6,2078.5,0.001]
[1773475390545,0.46325374,2078.9,2078.6,0.49174458]
[1773475392275,0.002,2078.9,2078.6,0.49174458]
[1773475393692,0.002,2078.9,2078.7,0.49174458]
[1773475394254,0.002,2078.9,2078.6,1.20269341]
[1773475394255,0.46325374,2078.9,2078.5,0.49274458]
[1773475394453,0.46125374,2078.8,2078.5,0.001]
[1773475397688,0.46125374,2078.8,2078.3,0.001]
[1773475397689,0.46125374,2078.7,2078.3,0.001]
[1773475400481,0.46125374,2078.6,2078.5,0.001]
[1773475408503,0.002,2078.7,2078.5,0.49315701]
[1773475408798,1.66875482,2078.7,2078.5,0.001]
[1773475412504,0.46407298,2078.6,2078.5,0.001]
[1773475424418,1.66680558,2078.6,2078.5,0.001]
[1773475424618,0.46407298,2078.6,2078.5,0.001]
[1773475425176,0.46607298,2078.6,2078.5,0.001]
[1773475425623,1.66880558,2078.6,2078.5,0.001]
[1773475426824,0.46607298,2078.6,2078.5,0.001]
[1773475430028,1.66880558,2078.6,2078.5,0.001]
[1773475430188,0.45972242,2078.5,2078.3,0.001]
[1773475430636,0.45972242,2078.5,2078.0,0.001]
[1773475430787,0.48662088,2078.3,2077.7,0.0011]
[1773475431392,0.48662088,2078.3,2077.7,0.02814055]
[1773475432388,0.48662088,2078.1,2077.7,0.02814055]
[1773475435893,0.48662088,2078.1,2077.8,0.0275986]
[1773475436092,0.48662088,2078.2,2077.8,0.0275986]
[1773475436589,0.48662088,2078.2,2077.9,0.02773708]
[1773475436799,1.68951148,2078.4,2077.9,0.02873708]
[1773475437087,0.48862088,2078.4,2077.9,0.02873708]
[1773475437598,0.002,2078.4,2077.9,0.02873708]
[1773475438811,0.48862088,2078.4,2078.0,0.02800039]
[1773475439220,0.48862088,2078.4,2077.9,0.001]
[1773475440603,0.48862088,2078.4,2077.7,0.0011]
[1773475440809,0.48862088,2078.4,2077.4,0.0011]
[1773475441008,0.48612088,2078.1,2077.4,0.0011]
[1773475441404,0.48612088,2078.1,2077.1,1.62049783]
[1773475441609,0.48612088,2078.1,2077.1,2.82409361]
[1773475443609,0.50074784,2077.9,2077.1,2.82409361]
[1773475443917,0.50074784,2077.7,2077.1,2.82409361]
[1773475446032,0.50074784,2077.6,2077.1,2.82493851]
[1773475448640,0.50074784,2077.6,2077.2,0.00112804]
[1773475448841,0.50074784,2077.6,2077.3,0.0011]
[1773475449139,0.001,2077.5,2077.3,0.0011]
[1773475452326,0.001,2077.5,2077.3,0.00276169]
[1773475456435,0.50174784,2077.5,2077.3,0.0011]
[1773475460760,0.001,2077.5,2077.3,0.0027924]
[1773475471145,0.001,2077.5,2077.4,0.0012797]
[1773475471768,0.001,2077.5,2077.3,0.0011]
[1773475472142,0.001,2077.5,2077.4,0.0011]
[1773475479859,0.50174784,2077.5,2077.1,1.62049783]
[1773475481358,0.50174784,2077.5,2077.1,2.82617522]
[1773475481677,0.50174784,2077.5,2077.2,0.0020769]
[1773475483987,0.50174784,2077.5,2077.3,0.0011]
[1773475484996,0.001,2077.5,2077.3,0.0011]
[1773475485288,0.001,2077.5,2077.3,0.00306524]
[1773475489691,0.50119784,2077.5,2077.3,0.0011]
[1773475497369,0.001,2077.5,2077.3,0.0011]
[1773475497966,0.50269784,2078.4,2077.4,10.18829898]
[1773475498167,0.50069784,2078.3,2077.4,8.818078]
[1773475498381,1.20294904,2078.3,2077.5,1.20336943]
[1773475498581,0.50069784,2078.2,2077.6,3.9325]
[1773475498788,0.50069784,2078.2,2077.6,3.542]
[1773475500485,0.002,2078.4,2077.7,1.20325359]
[1773475500688,0.50269784,2078.4,2077.7,1.20325359]
[1773475501783,0.50269784,2078.4,2077.4,1.20342736]
[1773475501980,0.50269784,2078.4,2077.5,10.6266]
[1773475502596,0.50069784,2078.2,2077.6,1.20331151]
[1773475505804,0.50069784,2078.2,2077.5,10.623506]
[1773475508107,0.50069784,2078.2,2077.7,0.0011]
[1773475508408,0.001,2078.0,2077.7,0.0011]
[1773475512111,0.50169784,2078.0,2077.7,0.0011]
[1773475519201,0.001,2078.0,2077.7,0.0011]
[1773475522133,0.002,2078.2,2077.7,0.0011]
[1773475524036,0.002,2078.2,2077.7,0.04923014]
[1773475525901,0.002,2078.2,2077.8,1.20319568]
[1773475526102,0.002,2078.2,2077.9,0.04812551]
[1773475526629,0.002,2078.4,2077.9,0.04812551]
[1773475527131,0.002,2078.6,2078.0,18.525793]
[1773475527304,0.002,2078.6,2077.9,23.159005]
[1773475527502,0.002,2078.7,2078.0,25.15424632]
[1773475527726,0.50269784,2078.7,2078.0,23.159005]
[1773475527934,0.50269784,2078.7,2078.2,10.6261]
[1773475528135,0.50269784,2078.7,2078.2,6.8841]
[1773475529907,0.50269784,2078.7,2078.3,1.20290622]
[1773475532741,0.50269784,2078.7,2078.1,11.15]
[1773475533141,0.50269784,2078.7,2078.1,10.0673]
[1773475533528,0.001,2078.5,2078.1,10.0673]
[1773475535042,0.001,2078.5,2078.2,1.2029641]
[1773475537246,0.001,2078.5,2078.0,4.81231152]
[1773475537448,0.001,2078.5,2078.1,16.943713]
[1773475537748,0.001,2078.5,2078.1,12.809652]
[1773475538649,0.002,2078.7,2078.1,12.809652]
[1773475539549,0.002,2078.7,2078.2,1.2029641]
[1773475540850,0.50269784,2078.7,2078.2,1.2029641]
[1773475541644,0.002,2078.7,2078.0,23.159005]
[1773475541844,0.002,2078.7,2077.9,4.81253622]
[1773475541845,0.002,2078.7,2078.1,0.04812087]
[1773475542069,0.002,2078.7,2078.1,15.528734]
[1773475542227,0.002,2078.7,2078.2,0.04811856]
[1773475542521,0.002,2078.7,2078.1,15.528834]
[1773475542726,0.002,2078.7,2078.2,0.04811856]
[1773475542924,0.002,2078.7,2078.1,15.528634]
[1773475543170,0.002,2078.7,2078.2,0.04811856]
[1773475543453,0.002,2078.7,2078.1,18.476574]
[1773475543653,0.002,2078.7,2078.3,1.20290622]
[1773475543823,0.002,2078.7,2078.4,0.04811393]
[1773475545356,0.002,2078.5,2078.4,0.04811393]
[1773475545524,0.002,2078.7,2078.4,0.04811393]
[1773475545726,0.002,2078.7,2078.5,1.20279047]
[1773475548685,0.002,2078.7,2078.6,0.0481093]
[1773475548876,0.002,2078.9,2078.5,1.25090208]
[1773475557533,0.002,2078.9,2078.7,0.001]
[1773475558141,0.002,2079.0,2078.7,0.001]
[1773475558453,0.50069784,2079.1,2078.7,0.001]
[1773475559237,0.50069784,2079.1,2078.7,1.20367474]
[1773475560574,0.50169784,2079.2,2078.7,1.20367474]
[1773475560979,0.50169784,2079.4,2078.8,0.04810467]
[1773475561180,0.50169784,2079.4,2078.7,1.20367474]
[1773475566381,0.50169784,2079.4,2078.8,0.04810467]
[1773475566545,0.50169784,2079.4,2078.7,1.20367474]
[1773475568678,0.50169784,2079.4,2078.7,0.001]
[1773475569479,0.50169784,2079.4,2078.8,0.44981638]
[1773475569678,0.50169784,2079.4,2079.0,0.44981638]
[1773475569854,0.002,2079.2,2079.0,0.44981638]
[1773475570055,1e-08,2079.4,2079.0,0.45074193]
[1773475570360,0.4585156,2079.6,2079.0,0.45074193]
[1773475570756,0.4585156,2079.6,2079.1,1.65318529]
[1773475570972,0.4585156,2079.6,2079.0,1.2025012]
[1773475572784,0.4585156,2079.5,2078.9,0.45174193]
[1773475573380,0.4585156,2079.5,2078.9,0.001]
[1773475574980,0.4585156,2079.3,2078.9,0.001]
[1773475576284,1.66077319,2079.5,2078.9,0.45174193]
[1773475576587,0.4585156,2079.4,2079.0,0.49884197]
[1773475577567,0.4585156,2079.4,2079.0,1.70129372]
[1773475579378,0.4585156,2079.4,2079.1,0.45074193]
[1773475579679,0.4585156,2079.6,2079.2,1.25048095]
[1773475579873,0.4585156,2079.6,2079.2,1.20238553]
[1773475580253,0.4585156,2079.6,2079.2,1.25048095]
[1773475580583,0.4585156,2079.6,2079.2,1.70122288]
[1773475581682,0.4585156,2079.6,2079.2,1.65312746]
[1773475581878,0.4585156,2079.6,2079.2,1.70122288]
[1773475582385,0.002,2079.4,2079.3,0.47114681]
[1773475583069,0.002,2079.4,2079.2,1.25048095]
[1773475585357,0.002,2079.4,2079.2,1.72162776]
[1773475587888,0.46809971,2079.4,2079.2,1.20238553]
[1773475588378,0.46809971,2079.4,2079.1,1.20240033]
[1773475589170,0.46809971,2079.4,2079.2,0.04809542]
[1773475589171,0.002,2079.4,2079.2,0.04809542]
[1773475589370,0.002,2079.4,2079.2,0.51924223]
[1773475589767,0.002,2079.4,2079.2,1.72157403]
[1773475590061,0.46809971,2079.4,2079.2,1.2023318]
[1773475591594,0.002,2079.4,2079.2,1.72157403]
[1773475592275,0.002,2079.4,2079.2,1.67347861]
[1773475593867,0.002,2079.4,2079.2,1.67447861]
[1773475596511,0.47945255,2079.4,2079.2,0.001]
[1773475596800,0.47945255,2079.4,2079.0,1.20346949]
[1773475597010,0.47945255,2079.4,2079.0,0.001]
[1773475598693,0.47745255,2079.3,2079.0,0.001]
[1773475605974,0.47745255,2079.3,2079.2,0.001]
[1773475610476,0.35745255,2079.3,2079.2,0.001]
[1773475610673,0.46859134,2079.4,2079.2,0.001]
[1773475618944,0.47103637,2079.3,2079.2,0.001]
[1773475619091,0.47103637,2079.3,2079.0,0.001]
[1773475620625,0.47103637,2079.2,2079.0,0.001]
[1773475629548,1.67342346,2079.2,2079.0,0.001]
[1773475629846,0.47103637,2079.1,2079.0,0.001]
[1773475635752,0.47103637,2079.1,2078.8,1.25072156]
[1773475635928,0.47103637,2079.1,2078.7,1.2036544]
[1773475636121,0.47103637,2079.1,2078.7,1.66992191]
[1773475642724,0.47103637,2079.1,2078.9,0.001]
[1773475643330,0.47303637,2079.1,2078.9,0.001]
[1773475650767,0.002,2079.4,2079.1,0.46081054]
[1773475653667,0.002,2079.4,2079.1,1.66324148]
[1773475653864,0.002,2079.4,2079.1,0.46081054]
[1773475656061,0.002,2079.4,2079.1,1.20244189]
[1773475656272,0.002,2079.5,2079.2,0.46081054]
[1773475656450,0.45371973,2079.5,2079.2,0.46081054]
[1773475660270,0.002,2079.5,2079.2,0.46081054]
[1773475660655,0.45371973,2079.5,2079.0,1.66327229]
[1773475661269,0.45371973,2079.5,2078.9,0.001]
[1773475661567,0.45371973,2079.5,2078.9,0.46181054]
[1773475662541,1.65398961,2079.4,2078.9,0.46181054]
[1773475663370,0.45171973,2079.3,2078.9,0.46181054]
[1773475666376,0.45171973,2079.3,2079.1,0.001]
[1773475666578,0.002,2079.2,2079.1,0.001]
[1773475667380,0.002,2079.2,2079.1,0.47708262]
[1773475672695,0.002,2079.2,2079.1,0.001]
[1773475674356,0.48014149,2079.2,2079.1,0.001]
[1773475674557,0.002,2079.4,2079.2,0.49130315]
[1773475678588,0.002,2079.4,2079.3,0.001]
[1773475679688,0.48014149,2079.4,2079.1,0.001]
[1773475680969,0.002,2079.4,2079.1,0.54040088]
[1773475682883,0.002,2079.4,2079.3,0.49130315]
[1773475683708,1.68016701,2079.9,2079.3,0.49130315]
[1773475684379,1.68016701,2079.9,2079.3,0.53939625]
[1773475686703,1.68016701,2079.9,2079.5,0.49130315]
[1773475691621,1.68016701,2079.9,2079.5,0.49230315]
[1773475691925,0.002,2079.7,2079.5,0.49230315]
[1773475693621,1.68216701,2079.9,2079.5,0.49230315]
[1773475694492,0.002,2079.9,2079.6,0.49130315]
[1773475704851,0.002,2079.7,2079.6,0.49130315]
[1773475705148,0.002,2079.9,2079.6,0.49130315]
[1773475710555,0.002,2079.9,2079.7,0.49100325]
[1773475711428,0.002,2079.9,2079.7,0.5390871]
[1773475711629,0.002,2079.9,2079.7,0.49100325]
[1773475716440,1.68632398,2080.2,2079.8,0.001]
[1773475716635,1.68632398,2080.2,2079.9,0.49100325]
[1773475716851,1.68632398,2080.2,2079.9,0.48527326]
[1773475717060,0.002,2080.2,2079.9,0.48527326]
[1773475720054,0.49023733,2080.2,2079.9,0.48527326]
[1773475721774,1.20186529,2080.1,2079.9,0.48527326]
[1773475725740,0.49023733,2080.2,2079.9,0.48527326]
[1773475725940,1.20382015,2080.2,2079.9,0.48527326]
[1773475729471,1.20382015,2080.2,2079.9,0.48627326]
[1773475730039,0.002,2080.1,2079.9,0.48627326]
[1773475732452,0.49392112,2080.4,2080.0,0.46712726]
[1773475732662,5.30037032,2080.6,2080.0,0.46712726]
[1773475732962,0.49392112,2080.6,2080.0,0.46712726]
[1773475733354,1.69553554,2080.6,2080.2,0.46712726]
[1773475741283,0.49392112,2080.5,2080.0,0.46712726]
[1773475741483,0.49392112,2080.5,2079.9,0.001]
[1773475743810,0.49392112,2080.3,2080.1,0.001]
[1773475745815,1.69567916,2080.3,2080.1,0.001]
[1773475746019,0.002,2080.4,2080.1,0.51620187]
[1773475748823,0.002,2080.4,2080.2,0.46712726]
[1773475753817,0.49592112,2080.4,2080.1,0.001]
[1773475754319,0.002,2080.4,2080.2,0.46712726]
[1773475754702,0.49392112,2080.6,2080.2,0.44574215]
[1773475754703,1.69550326,2080.6,2080.2,0.44574215]
[1773475754895,0.49392112,2080.5,2080.2,0.39816826]
[1773475755223,1.69556235,2080.5,2080.2,0.30302249]
[1773475755418,1.20164123,2080.5,2080.1,0.46812726]
[1773475755620,0.49392112,2080.4,2080.1,0.46812726]
[1773475756327,0.49392112,2080.4,2080.1,0.42055243]
[1773475756624,1.69556235,2080.5,2080.1,0.42055243]
[1773475758223,1.69556235,2080.5,2080.2,0.001]
[1773475758406,0.002,2080.3,2080.2,0.001]
[1773475758605,1.69556235,2080.5,2080.2,0.001]
[1773475758902,1.69756235,2080.5,2080.2,0.001]
[1773475759324,1.69756235,2080.5,2080.2,0.46812726]
[1773475763112,0.002,2080.5,2080.2,0.46812726]
[1773475766029,0.002,2080.5,2080.3,1.20174974]
[1773475766330,0.002,2080.5,2080.3,0.46102179]
[1773475767029,0.002,2080.5,2080.2,0.001]
[1773475767206,0.47945885,2080.5,2080.2,0.001]
[1773475767712,0.002,2080.5,2080.3,0.46102179]
[1773475767907,0.002,2080.5,2080.3,0.50909177]
[1773475768230,0.002,2080.5,2080.3,0.3124691]
[1773475771604,0.002,2080.5,2080.4,0.001]
[1773475774534,0.47745885,2080.9,2080.4,1.07172531]
[1773475774708,1.6788705,2080.9,2080.4,0.31346201]
[1773475775134,0.47745885,2080.8,2080.4,0.31146088]
[1773475776237,0.47745885,2080.6,2080.2,0.001]
[1773475776540,0.47745885,2080.4,2080.2,0.001]
[1773475778241,0.47745885,2080.2,2080.0,0.001]
[1773475778824,0.47745885,2080.1,2080.0,0.001]
[1773475779617,0.47745885,2080.0,2079.8,0.001]
[1773475779923,0.47745885,2080.2,2079.8,0.31245646]
[1773475780220,0.47745885,2080.2,2079.9,0.31145646]
[1773475780954,0.7582633,2080.8,2079.9,0.31145646]
[1773475780955,0.47745885,2080.8,2080.1,0.31145539]
[1773475781333,0.47745885,2080.8,2079.9,1.51341538]
[1773475781931,0.47745885,2080.7,2079.8,1.51449063]
[1773475782450,0.47745885,2080.6,2079.8,1.51449063]
[1773475782958,0.47745885,2080.4,2079.8,1.51449063]
[1773475784647,0.47745885,2080.4,2080.1,0.001]
[1773475785225,0.47745885,2080.3,2080.1,0.001]
[1773475785938,0.47745885,2080.5,2080.1,0.001]
[1773475787452,0.47955,2080.3,2079.9,0.001]
[1773475789326,1.20180751,2080.2,2079.9,0.001]
[1773475789550,1.68135751,2080.2,2079.9,0.001]
[1773475790850,0.47955,2080.1,2079.9,0.001]
[1773475792052,0.47719042,2080.4,2079.9,0.47863816]
[1773475794496,1.67894016,2080.3,2079.9,0.47863816]
[1773475796267,0.52527211,2080.2,2079.7,0.001]
[1773475796566,0.47719042,2080.0,2079.7,0.47863816]
[1773475797034,1.67894016,2080.3,2079.8,0.5257197]
[1773475798580,1.67894016,2080.3,2079.9,0.47863816]
[1773475798865,0.002,2080.1,2079.9,0.47863816]
[1773475799062,0.002,2080.1,2079.9,0.001]
[1773475799228,0.05008169,2080.1,2079.9,0.001]
[1773475799434,0.002,2080.1,2079.9,0.001]
[1773475800036,0.47919042,2080.1,2079.9,0.001]
[1773475800535,0.04808169,2080.0,2079.9,0.001]
[1773475800847,1.72719518,2080.0,2079.9,0.001]
[1773475801167,1.67911349,2080.0,2079.9,0.001]
[1773475802071,1.72719518,2080.0,2079.9,0.001]
[1773475812146,1.72919518,2080.0,2079.9,0.001]
[1773475818382,1.25200476,2080.0,2079.9,0.001]
[1773475821291,0.05008169,2080.0,2079.9,0.45734127]
[1773475821456,1.20387574,2080.1,2079.9,0.45734127]
[1773475824161,0.002,2080.0,2079.9,0.45734127]
[1773475832081,0.002,2080.3,2080.0,0.45634127]
[1773475832470,0.05008169,2080.3,2080.0,0.45634127]
[1773475832884,0.002,2080.3,2080.0,0.45634127]
[1773475835495,1.24981598,2080.4,2080.2,0.45634127]
[1773475836305,1.20167695,2080.5,2080.2,0.45634127]
[1773475836595,0.04808169,2080.4,2080.2,0.45634127]
[1773475837290,1.24979318,2080.4,2080.2,0.45634127]
[1773475838172,0.46810831,2080.3,2080.1,0.001]
[1773475838574,0.51619,2080.2,2080.1,0.001]
[1773475839395,1.71799751,2080.2,2080.1,0.001]
[1773475845499,0.04808169,2080.2,2080.1,0.001]
[1773475845702,1.20178283,2080.3,2080.1,0.001]
[1773475846207,1.66989114,2080.3,2080.1,0.001]
[1773475846898,0.46810831,2080.3,2080.1,0.001]
[1773475847280,1.24983161,2080.3,2080.1,0.001]
[1773475847606,1.24983161,2080.3,2080.2,0.001]
[1773475848078,0.04808169,2080.3,2080.2,0.001]
[1773475848274,0.04808169,2080.3,2080.2,0.47985669]
[1773475848275,0.002,2080.3,2080.2,0.47985669]
[1773475848498,0.04808169,2080.5,2080.3,0.47885669]
[1773475848692,1.24971856,2080.5,2080.3,0.47885669]
[1773475849218,1.73798672,2080.5,2080.2,0.42061212]
[1773475856738,3.17868966,2080.6,2080.2,0.42061212]
[1773475857102,3.17868966,2080.6,2080.3,0.4196082]
[1773475858007,1.25168966,2080.6,2080.3,0.4196082]
[1773475858187,1.73652993,2080.6,2080.3,0.4196082]
[1773475859898,1.73652993,2080.6,2080.4,0.001]
[1773475860386,1.25168966,2080.6,2080.4,0.001]
[1773475861330,1.25168037,2080.6,2080.4,0.001]
[1773475864919,0.48484027,2080.5,2080.4,0.001]
[1773475865219,0.48484027,2080.5,2080.2,0.001]
[1773475865412,0.48484027,2080.3,2080.2,0.001]
[1773475866422,1.68659001,2080.3,2080.2,0.001]
[1773475877128,1.20174974,2080.3,2080.2,0.001]
[1773475877629,1.7366507,2080.4,2080.2,0.001]
[1773475879537,0.53492196,2080.4,2080.2,0.001]
[1773475879730,1.73661428,2080.4,2080.2,0.001]
[1773475882034,1.73662037,2080.4,2080.2,0.001]
[1773475883533,0.53492196,2080.4,2080.2,0.001]
[1773475884224,0.05008169,2080.4,2080.2,0.001]
[1773475884533,0.05008169,2080.4,2080.2,0.42159832]
[1773475884734,0.002,2080.4,2080.2,0.42159832]
[1773475886441,0.002,2080.6,2080.5,0.4120422]
[1773475886607,0.002,2080.6,2080.4,0.4130422]
[1773475886810,0.48083895,2080.6,2080.4,0.001]
[1773475887635,0.002,2080.6,2080.4,0.001]
[1773475889121,0.002,2080.6,2080.4,0.41304134]
[1773475893117,0.002,2080.6,2080.5,0.41204024]
[1773475899052,0.002,2080.6,2080.5,0.41304024]
[1773475900642,0.002,2080.7,2080.5,0.41304024]
[1773475907654,0.002,2080.7,2080.6,0.41203653]
[1773475911636,0.002,2080.7,2080.5,1.61466712]
[1773475915962,0.48787575,2081.0,2080.6,0.46009764]
[1773475916143,0.48787575,2080.9,2080.6,0.46009764]
[1773475920574,1.20134835,2081.0,2080.7,1.20151871]
[1773475920575,0.48787575,2081.0,2080.7,1.20151871]
[1773475920750,0.48787575,2081.0,2080.6,1.66162965]
[1773475922770,0.48787575,2081.0,2080.7,0.41203322]
[1773475923368,1.68925688,2081.0,2080.7,0.41203322]
[1773475923567,1.68925688,2081.0,2080.5,0.001]
[1773475923568,0.48787575,2080.9,2080.5,0.001]
[1773475923766,0.48787575,2080.9,2080.5,1.20262347]
[1773475924145,0.48787575,2080.9,2080.5,1.61465632]
[1773475924841,0.48787575,2080.9,2080.8,0.001]
[1773475930464,0.002,2081.0,2080.8,0.001]
[1773475930763,0.002,2081.0,2080.8,0.41303178]
[1773475932080,0.48987575,2081.0,2080.8,0.001]
[1773475935092,0.002,2081.0,2080.8,0.001]
[1773475935262,0.002,2081.0,2080.8,0.41303095]
[1773475935466,1.20117234,2081.3,2080.9,0.41203095]
[1773475935776,1.68904809,2081.3,2080.9,0.41203095]
[1773475936172,0.48787575,2081.2,2080.9,0.41203095]
[1773475937183,1.6891388,2081.2,2080.9,0.41203095]
[1773475937662,0.48787575,2081.4,2080.9,0.41203095]
[1773475937982,0.002,2081.1,2080.9,0.41203095]
[1773475941588,0.002,2081.1,2081.0,1.2013455]
[1773475941767,0.48787575,2081.2,2080.9,0.41203095]
[1773475942291,1.20317249,2081.3,2080.9,0.41203095]
[1773475942589,1.68632995,2081.3,2080.9,0.41203095]
[1773475947488,0.48315746,2081.2,2080.8,1.25047797]
[1773475947690,0.48315746,2081.2,2080.8,1.66250696]
[1773475949796,0.48315746,2081.2,2080.9,0.41202872]
[1773475951086,0.48315746,2081.2,2081.1,0.001]
[1773475954198,0.48315746,2081.1,2080.9,0.001]
[1773475957271,0.48315746,2081.0,2080.9,0.001]
[1773475960802,0.48315746,2081.1,2080.9,0.001]
[1773475965804,0.48315746,2081.0,2080.9,0.001]
[1773475968510,0.002,2081.1,2080.9,0.001]
[1773475969514,0.4875462,2081.1,2080.9,0.001]
[1773475972199,1.68883913,2081.1,2080.9,0.001]
[1773475972399,0.48620281,2081.0,2080.9,0.001]
[1773475981736,0.48620281,2080.8,2080.7,0.001]
[1773475982021,1.68758548,2081.0,2080.6,0.41502489]
[1773475983536,0.48620281,2081.0,2080.6,0.41502489]
[1773475983741,1.68755672,2081.0,2080.6,0.41502489]
[1773475985936,0.48620281,2081.0,2080.6,0.001]
[1773475986099,0.48620281,2081.0,2080.6,1.61656332]
[1773475986601,0.48820281,2081.1,2080.7,0.41402444]
[1773475987001,1.68949333,2081.1,2080.7,0.41402444]
[1773475988335,0.48820281,2081.1,2080.8,0.41402427]
[1773475988906,1.68949265,2081.1,2080.8,0.41402427]
[1773475989802,1.68949265,2081.1,2080.6,1.20252699]
[1773475990008,0.48620281,2081.0,2080.6,1.20252699]
[1773475990236,0.48620281,2081.0,2080.7,0.4140241]
[1773475991042,0.48620281,2081.0,2080.8,0.001]
[1773475991215,0.002,2080.9,2080.8,0.001]
[1773475993934,0.48820281,2080.9,2080.8,0.001]
[1773475995214,0.002,2080.9,2080.8,0.001]
[1773476001640,0.48620281,2081.0,2080.8,0.001]
[1773476002322,1.65334171,2081.1,2080.8,0.001]
[1773476003741,1.65334171,2081.1,2080.9,0.001]
[1773476004316,0.45205026,2081.1,2080.9,0.001]
[1773476004609,1.65334053,2081.1,2080.9,0.001]
[1773476011440,0.45205026,2081.1,2080.9,0.001]
[1773476011745,0.002,2081.1,2080.9,0.001]
[1773476036368,0.50200275,2081.2,2080.9,0.001]
[1773476036545,0.002,2081.2,2080.9,0.001]
[1773476037369,0.50200275,2081.2,2080.9,0.001]
[1773476040369,0.50200275,2081.2,2081.1,0.001]
[1773476049082,0.34210652,2081.5,2081.1,0.001]
[1773476049385,0.45049277,2081.6,2081.2,0.48360836]
[1773476050351,0.45049277,2081.9,2081.1,1.68586237]
[1773476050581,0.45049277,2081.9,2081.1,0.001]
[1773476051561,0.45049277,2081.9,2081.1,0.48460836]
[1773476052087,0.45049277,2081.9,2081.1,1.68589267]
[1773476053586,0.45049277,2081.7,2081.1,1.68589267]
[1773476053981,0.45049277,2081.7,2081.3,0.001]
[1773476054287,0.45249277,2081.7,2081.3,0.001]
[1773476055594,0.45049277,2081.5,2081.3,0.001]
[1773476061659,0.46450771,2081.6,2081.3,0.001]
[1773476061865,0.46450771,2081.6,2081.3,0.46082356]
[1773476062296,1.66745584,2081.7,2081.3,0.46082356]
[1773476066093,1.20294813,2081.7,2081.3,0.46082356]
[1773476066294,1.66745584,2081.7,2081.3,0.46082356]
[1773476067299,1.66745584,2081.7,2081.5,0.001]
[1773476068201,1.20294813,2081.7,2081.5,0.001]
[1773476068491,1.66745584,2081.7,2081.5,0.001]
[1773476068691,0.46450771,2081.6,2081.5,0.001]
[1773476070099,1.66550694,2081.6,2081.5,0.001]
[1773476072907,0.46450771,2081.5,2081.1,0.001]
[1773476074909,1.66562234,2081.4,2081.1,0.001]
[1773476076206,1.66562234,2081.4,2081.1,0.46082356]
[1773476080215,1.66562234,2081.4,2081.3,0.001]
[1773476082896,1.20309211,2081.5,2081.3,0.001]
[1773476083918,1.66759982,2081.5,2081.3,0.001]
[1773476093038,1.66759982,2081.5,2081.4,0.001]
[1773476096718,1.20309211,2081.5,2081.2,0.04149126]
[1773476099551,1.20309211,2081.5,2081.0,0.04525385]
[1773476099552,0.49768121,2081.4,2081.0,0.04525385]
[1773476100947,0.49768121,2081.4,2080.9,0.001]
[1773476101133,0.49768121,2081.4,2080.9,0.04868583]
[1773476101521,0.49768121,2081.2,2080.9,0.04868583]
[1773476101720,0.49768121,2081.2,2080.9,0.001]
[1773476105150,1.20117234,2081.3,2081.2,0.001]
[1773476105322,1.70085355,2081.3,2081.2,0.001]
[1773476105746,0.002,2081.3,2081.2,0.001]
[1773476105918,0.49968121,2081.5,2081.2,0.05339273]
[1773476105919,0.002,2081.5,2081.2,0.05339273]
[1773476106323,0.002,2081.5,2081.3,0.0515336]
[1773476107620,0.002,2081.5,2081.3,0.05266268]
[1773476107822,0.50068121,2081.5,2081.2,0.001]
[1773476108323,1.70175409,2081.5,2081.2,0.001]
[1773476108655,0.002,2081.5,2081.2,0.0547783]
[1773476113223,0.002,2081.5,2081.3,0.05916657]
[1773476115249,0.50068121,2081.5,2081.2,0.001]
[1773476117750,0.002,2081.3,2081.2,0.06427113]
[1773476118374,0.002,2081.7,2081.4,0.06226653]
[1773476118942,1.20295026,2081.7,2081.4,0.06226653]
[1773476119178,1.70263147,2081.7,2081.4,0.06226653]
[1773476120564,0.002,2081.7,2081.4,0.06226653]
[1773476121566,0.50168121,2081.7,2081.4,0.06226653]
[1773476124070,0.49968121,2081.6,2081.2,1.202193]
[1773476124260,0.49968121,2081.6,2081.2,0.001]
[1773476126346,0.49968121,2081.5,2081.2,0.001]
[1773476126746,0.49968121,2081.5,2081.2,0.07172318]
[1773476127976,1.20100099,2081.6,2081.2,0.07172318]
[1773476128179,0.49968121,2081.5,2081.2,0.001]
[1773476129376,0.49968121,2081.5,2081.4,0.001]
[1773476129582,0.50168121,2081.5,2081.4,0.001]
[1773476131279,0.002,2081.5,2081.4,0.0760527]
[1773476131482,1.70264728,2081.7,2081.4,0.0760527]
[1773476131679,1.70262559,2081.7,2081.4,0.0760527]
[1773476131982,0.50068121,2081.6,2081.4,0.001]
[1773476133380,0.50068121,2081.6,2081.2,0.0740527]
[1773476133587,0.50068121,2081.6,2081.2,0.001]
[1773476133881,0.50068121,2081.4,2081.2,0.001]
[1773476135281,1.70168609,2081.6,2081.2,0.07734728]
[1773476135588,0.50068121,2081.6,2081.2,0.07734728]
[1773476135883,0.50068121,2081.6,2081.2,1.27857534]
[1773476138684,0.50068121,2081.5,2081.2,0.001]
[1773476139076,0.50068121,2081.5,2081.0,0.0797248]
[1773476139077,0.50068121,2081.5,2081.0,0.001]
[1773476140685,1.70179584,2081.4,2081.0,0.08125078]
[1773476140885,4.80589412,2081.7,2081.0,0.08125078]
[1773476141073,0.50068121,2081.5,2081.0,0.08125078]
[1773476141587,0.50068121,2081.5,2081.0,0.001]
[1773476142288,0.50018121,2081.3,2081.0,0.001]
[1773476142590,0.50018121,2081.3,2081.1,0.001]
[1773476143083,0.50018121,2081.2,2081.1,0.001]
[1773476145595,1.70141126,2081.2,2081.1,0.001]
[1773476146095,0.50018121,2081.2,2081.1,0.001]
[1773476146464,1.70141126,2081.2,2081.1,0.001]